{"text_format":"1","workbook":"xlsx","n_sheets":3,"sheets":["TARGET_SH","SOURCE_SH","Sheet1"],"not_rendered":{"charts":0,"images":2,"macros":1,"external_links":0,"defined_names":3,"comments":0,"pivot_tables":0},"unopened":[],"bounds":{"document_bytes":16777216,"sheet_cells":100000,"rows_first":2000,"rows_last":500,"rows_between":2000,"halvings":0,"cell_chars":16384,"cell_head_chars":4096},"cells_cut":0,"cells_raw":0,"read":"whole","date_system":"1900"}

{"sheet":"TARGET_SH","index":0,"n_rows":274,"n_cols":81,"rows_kept":274,"cut":false,"hidden":false,"merged":[[20,80,24,96],[227,11,230,23],[231,11,236,23],[231,24,236,37],[231,38,236,58],[231,59,236,79],[237,11,242,23],[237,24,242,37],[227,24,230,37],[237,38,242,58],[237,59,242,79],[114,34,118,37],[114,38,118,55],[114,72,118,90],[114,56,118,61],[109,56,113,61],[119,34,123,37],[119,38,123,55],[119,72,123,90],[94,34,98,37],[94,38,98,55],[119,56,123,61],[84,56,87,90],[88,62,93,71],[273,13,273,29],[268,11,269,31],[268,36,269,56],[268,59,269,79],[243,11,248,37],[243,38,248,79],[252,11,258,27],[252,28,258,44],[252,45,258,61],[252,62,258,79],[274,63,274,76],[273,38,273,54],[273,61,273,77],[259,11,265,27],[259,62,265,79],[224,2,226,79],[222,2,223,25],[173,34,176,37],[169,34,172,37],[177,14,180,33],[181,14,184,33],[169,14,172,33],[165,3,180,13],[165,14,168,33],[173,14,176,33],[189,14,192,33],[185,14,188,33],[181,3,192,13],[185,38,188,61],[189,38,192,61],[177,38,180,61],[177,62,180,68],[259,28,265,44],[259,45,265,61],[88,72,93,90],[94,72,98,90],[104,38,108,55],[104,56,108,61],[104,72,108,90],[109,72,113,90],[99,38,103,55],[99,56,103,61],[99,72,103,90],[94,56,98,61],[185,0,188,2],[181,0,184,2],[114,0,118,2],[148,1,150,11],[189,0,192,2],[219,1,221,11],[119,0,123,2],[160,0,164,2],[165,0,168,2],[119,3,123,28],[169,69,172,90],[156,62,159,90],[156,34,159,61],[165,34,168,37],[165,38,168,61],[181,69,184,90],[177,0,180,2],[169,0,172,2],[173,0,176,2],[78,1,80,22],[84,0,87,33],[50,25,51,34],[75,1,77,11],[94,0,98,2],[88,0,93,2],[104,0,108,2],[99,0,103,2],[109,0,113,2],[104,29,108,33],[99,34,103,37],[24,22,27,31],[32,22,35,31],[28,22,31,31],[24,52,27,61],[50,44,51,53],[45,44,47,53],[45,65,47,74],[50,64,51,74],[28,52,31,61],[28,62,31,77],[20,32,23,51],[20,52,23,61],[20,62,23,77],[24,62,27,77],[32,32,35,77],[36,32,39,77],[28,32,31,51],[189,62,192,68],[185,62,188,68],[160,62,164,68],[165,62,168,68],[109,34,113,37],[109,38,113,55],[114,62,118,71],[104,62,108,71],[94,62,98,71],[99,62,103,71],[109,62,113,71],[45,25,47,34],[109,3,113,28],[109,29,113,33],[114,3,118,28],[114,29,118,33],[88,29,93,33],[197,62,201,68],[189,34,192,37],[227,38,230,58],[227,59,230,79],[185,34,188,37],[193,62,196,68],[173,62,176,68],[181,62,184,68],[119,62,123,71],[124,62,127,71],[185,69,188,90],[189,69,192,90],[173,69,176,90],[177,69,180,90],[173,38,176,61],[181,38,184,61],[160,34,164,37],[177,34,180,37],[169,38,172,61],[181,34,184,37],[169,62,172,68],[160,38,164,61],[160,69,164,90],[165,69,168,90],[119,29,123,33],[124,29,127,33],[151,1,153,36],[156,0,159,33],[160,3,164,33],[197,38,201,61],[193,38,196,61],[24,32,27,51],[10,36,13,60],[15,5,17,16],[20,22,23,31],[124,38,127,61],[88,34,93,37],[88,38,93,55],[84,34,87,55],[88,56,93,61],[88,3,93,28],[94,3,98,28],[36,22,39,31],[94,29,98,33],[104,3,108,28],[99,3,103,28],[104,34,108,37],[99,29,103,33]]}
[]
[]
[]
[]
[]
[]
[]
[]
[]
[]
[null,null,null,null,null,null,null,null,null,null,null,null,null,null,null,null,null,null,null,null,null,null,null,null,null,null,null,null,null,null,null,null,null,null,null,null,"وثيقة الأداء السنوي لموظفي حكومة الشارقة"]
[]
[]
[]
[]
[null,null,null,null,null,"خاص وسري"]
[]
[]
[]
[]
[null,null,null,null,null,null,null,null,null,null,null,null,null,null,null,null,null,null,null,null,null,null,"اسم الموظف: ",null,null,null,null,null,null,null,null,null,{"$f":"IF(ISERROR(MATCH($BK$21,INDEX(بيانات1,0,2),0)),\"\",INDEX(بيانات1,MATCH($BK$21,INDEX(بيانات1,0,2),0),1))","v":"زاهر على محمد على"},null,null,null,null,null,null,null,null,null,null,null,null,null,null,null,null,null,null,null,"الرقم الوظيفي:",null,null,null,null,null,null,null,null,null,14557,null,null,null,null,null,null,null,null,null,null,null,null,null,null,null,null,null,"قائمة منسدلة مطاطية في خانة الرقم الوظيفي"]
[]
[]
[]
[null,null,null,null,null,null,null,null,null,null,null,null,null,null,null,null,null,null,null,null,null,null,"المسمى الوظيفي:",null,null,null,null,null,null,null,null,null,{"$f":"IF(ISERROR(MATCH($BK$21,INDEX(بيانات1,0,2),0)),\"\",INDEX(بيانات1,MATCH($BK$21,INDEX(بيانات1,0,2),0),3))","v":"مراقب"},null,null,null,null,null,null,null,null,null,null,null,null,null,null,null,null,null,null,null,"الدرجة الوظيفية:",null,null,null,null,null,null,null,null,null,{"$f":"IF(ISERROR(MATCH($BK$21,INDEX(بيانات1,0,2),0)),\"\",INDEX(بيانات1,MATCH($BK$21,INDEX(بيانات1,0,2),0),4))","v":12}]
[]
[]
[]
[null,null,null,null,null,null,null,null,null,null,null,null,null,null,null,null,null,null,null,null,null,null,"الإدارة/القسم:",null,null,null,null,null,null,null,null,null,{"$f":"IF(ISERROR(MATCH($BK$21,INDEX(بيانات1,0,2),0)),\"\",INDEX(بيانات1,MATCH($BK$21,INDEX(بيانات1,0,2),0),5))","v":"قسم المحطات الخارجية والشبكات"},null,null,null,null,null,null,null,null,null,null,null,null,null,null,null,null,null,null,null,"تاريخ التعيين:",null,null,null,null,null,null,null,null,null,{"$f":"IF(ISERROR(MATCH($BK$21,INDEX(بيانات1,0,2),0)),\"\",INDEX(بيانات1,MATCH($BK$21,INDEX(بيانات1,0,2),0),6))","v":"2003-05-12"}]
[]
[]
[]
[null,null,null,null,null,null,null,null,null,null,null,null,null,null,null,null,null,null,null,null,null,null,"اسم المسؤول المباشر:",null,null,null,null,null,null,null,null,null,"م. جعفر علي جعفر"]
[]
[]
[]
[null,null,null,null,null,null,null,null,null,null,null,null,null,null,null,null,null,null,null,null,null,null,"اسم مدير الإدارة:",null,null,null,null,null,null,null,null,null,"م. جعفر علي جعفر"]
[]
[]
[]
[]
[]
[]
[]
[]
[null,null,null,null,null,null,null,null,null,null,null,null,null,null,null,null,null,null,null,null,null,null,null,null,null,"تاريخ المرحلة الأولى\n(تخطيط الأداء)",null,null,null,null,null,null,null,null,null,null,null,null,null,null,null,null,null,null,"تاريخ المرحلة الثانية\n(مراقبة الأداء)",null,null,null,null,null,null,null,null,null,null,null,null,null,null,null,null,null,null,null,null,"تاريخ المرحلة الثالثة\n(تقييم الأداء)"]
[]
[]
[]
[]
[null,null,null,null,null,null,null,null,null,null,null,null,null,null,null,null,null,null,null,null,null,null,null,null,null,"يناير-فبراير ",null,null,null,null,null,null,null,null,null,null,null,null,null,null,null,null,null,null,"يونيو-يوليو ",null,null,null,null,null,null,null,null,null,null,null,null,null,null,null,null,null,null,null,"نوفمبر-ديسمبر "]
[]
[]
[]
[]
[]
[]
[]
[]
[]
[]
[]
[]
[]
[]
[]
[]
[]
[]
[]
[]
[]
[]
[]
[]
[null,"القسم (1) "]
[]
[]
[null,"نموذج تقييم الأهداف / المهام الوظيفية"]
[]
[]
[]
[]
[]
["تخطيط الأداء (يناير- فبراير)",null,null,null,null,null,null,null,null,null,null,null,null,null,null,null,null,null,null,null,null,null,null,null,null,null,null,null,null,null,null,null,null,null,"مراقبة الأداء (يونيو – يوليو)",null,null,null,null,null,null,null,null,null,null,null,null,null,null,null,null,null,null,null,null,null,"تقييم الأداء (نوفمبر – ديسمبر)"]
[]
[]
[]
["م",null,null,"الأهداف الفردية والمهام الفردية",null,null,null,null,null,null,null,null,null,null,null,null,null,null,null,null,null,null,null,null,null,null,null,null,null,"وزن الهدف\n100%",null,null,null,null,"أنجزت\nنعم/لا",null,null,null,"الملاحظات والإثباتات",null,null,null,null,null,null,null,null,null,null,null,null,null,null,null,null,null,"نقاط التقييم\n(4-1)",null,null,null,null,null,"نتيجة التقييم\n(وزن الهدف والمهام* نقاط التقييم)",null,null,null,null,null,null,null,null,null,"الأسباب والمبررات"]
[]
[]
[]
[]
[]
[1,null,null,null,null,null,null,null,null,null,null,null,null,null,null,null,null,null,null,null,null,null,null,null,null,null,null,null,null,0.2,null,null,null,null,"نعم",null,null,null,null,null,null,null,null,null,null,null,null,null,null,null,null,null,null,null,null,null,null,null,null,null,null,null,{"$f":"BE95*AD95","v":0}]
[]
[]
[]
[]
[2,null,null,null,null,null,null,null,null,null,null,null,null,null,null,null,null,null,null,null,null,null,null,null,null,null,null,null,null,0.1,null,null,null,null,"نعم",null,null,null,null,null,null,null,null,null,null,null,null,null,null,null,null,null,null,null,null,null,null,null,null,null,null,null,{"$f":"BE100*AD100","v":0}]
[]
[]
[]
[]
[3,null,null,null,null,null,null,null,null,null,null,null,null,null,null,null,null,null,null,null,null,null,null,null,null,null,null,null,null,0.2,null,null,null,null,"نعم",null,null,null,null,null,null,null,null,null,null,null,null,null,null,null,null,null,null,null,null,null,null,null,null,null,null,null,{"$f":"BE105*AD105","v":0}]
[]
[]
[]
[]
[4,null,null,null,null,null,null,null,null,null,null,null,null,null,null,null,null,null,null,null,null,null,null,null,null,null,null,null,null,0.3,null,null,null,null,"نعم",null,null,null,null,null,null,null,null,null,null,null,null,null,null,null,null,null,null,null,null,null,null,null,null,null,null,null,{"$f":"BE110*AD110","v":0}]
[]
[]
[]
[]
[5,null,null,null,null,null,null,null,null,null,null,null,null,null,null,null,null,null,null,null,null,null,null,null,null,null,null,null,null,0.2,null,null,null,null,"نعم",null,null,null,null,null,null,null,null,null,null,null,null,null,null,null,null,null,null,null,null,null,null,null,null,null,null,null,{"$f":"BE115*AD115","v":0}]
[]
[]
[]
[]
[6,null,null,null,null,null,null,null,null,null,null,null,null,null,null,null,null,null,null,null,null,null,null,null,null,null,null,null,null,null,null,null,null,null,null,null,null,null,null,null,null,null,null,null,null,null,null,null,null,null,null,null,null,null,null,null,null,null,null,null,null,null,{"$f":"BE120*AD120","v":0}]
[]
[]
[]
[]
[null,null,null,null,null,null,null,null,null,null,null,null,null,null,null,null,null,null,null,null,null,null,null,null,null,null,null,null,null,{"$f":"SUM(AD95:AH124)","v":1},null,null,null,null,null,null,null,null,"التقييم الكلي للأهداف أو المهام\n( 4-1)",null,null,null,null,null,null,null,null,null,null,null,null,null,null,null,null,null,null,null,null,null,null,null,{"$f":"SUM(BK95:BT124)","v":0}]
[]
[]
[]
[]
[]
[]
[]
[]
[]
[]
[]
[]
[]
[]
[]
[]
[]
[]
[]
[]
[]
[]
[]
[null,"القسم (2) "]
[]
[]
[null,"نموذج تقييم الكفاءات السلوكية (خاص بالوظائف الفنية والإدارية)"]
[]
[]
[]
[]
["تخطيط الأداء (يناير- فبراير)",null,null,null,null,null,null,null,null,null,null,null,null,null,null,null,null,null,null,null,null,null,null,null,null,null,null,null,null,null,null,null,null,null,"مراقبة الأداء (يونيو – يوليو)",null,null,null,null,null,null,null,null,null,null,null,null,null,null,null,null,null,null,null,null,null,null,null,null,null,null,null,"تقييم الأداء (نوفمبر – ديسمبر)"]
[]
[]
[]
["الرقم",null,null,"الكفاءات السلوكية",null,null,null,null,null,null,null,null,null,null,null,null,null,null,null,null,null,null,null,null,null,null,null,null,null,null,null,null,null,null,"أنجزت\nنعم/لا",null,null,null,"الملاحظات والإثباتات",null,null,null,null,null,null,null,null,null,null,null,null,null,null,null,null,null,null,null,null,null,null,null,"نقاط التقييم\n(4-1)",null,null,null,null,null,null,"الأسباب والمبررات"]
[]
[]
[]
[]
[1,null,null,"الكفاءات\nالأساسية",null,null,null,null,null,null,null,null,null,null,"التواصل الفعال"]
[]
[]
[]
[2,null,null,null,null,null,null,null,null,null,null,null,null,null,"التركيز على النتائج"]
[]
[]
[]
[3,null,null,null,null,null,null,null,null,null,null,null,null,null,"العمل بروح الفريق"]
[]
[]
[]
[4,null,null,null,null,null,null,null,null,null,null,null,null,null,"المبادرة والإبتكار"]
[]
[]
[]
[1,null,null,"الكفاءات \n  الفنية والإدارية",null,null,null,null,null,null,null,null,null,null,"التقنية الفنية وجودة العمل"]
[]
[]
[]
[2,null,null,null,null,null,null,null,null,null,null,null,null,null,"إدارة الوقت والأوليات"]
[]
[]
[]
[3,null,null,null,null,null,null,null,null,null,null,null,null,null,"الدافع الذاتي والإصرار على النجاح"]
[]
[]
[]
[null,null,null,null,null,null,null,null,null,null,null,null,null,null,null,null,null,null,null,null,null,null,null,null,null,null,null,null,null,null,null,null,null,null,null,null,null,null,"مجموع نقاط تقييم الكفاءات",null,null,null,null,null,null,null,null,null,null,null,null,null,null,null,null,null,null,null,null,null,null,null,{"$f":"SUM(BK166:BQ193)","v":0}]
[]
[]
[]
[null,null,null,null,null,null,null,null,null,null,null,null,null,null,null,null,null,null,null,null,null,null,null,null,null,null,null,null,null,null,null,null,null,null,null,null,null,null,"التقييم الكلي للكفاءات\nالمعدل (مجموع نقاط الكفاءات/عدد الكفاءات)",null,null,null,null,null,null,null,null,null,null,null,null,null,null,null,null,null,null,null,null,null,null,null,{"$f":"BK194/7","v":0}]
[]
[]
[]
[]
[]
[]
[]
[]
[]
[]
[]
[]
[]
[]
[]
[]
[]
[]
[]
[]
[]
[null,"القسم (3) "]
[]
[]
[null,null,"التقييم النهائي للأداء السنوي"]
[]
[null,null,"في هذا الجزء يقوم المسؤول المباشر بتقييم الأهداف والكفاءات التي حققها الموظف خلال سنة التقييم بناءً على ما تم تحديده في وثيقة الأداء السنوي"]
[]
[]
[null,null,null,null,null,null,null,null,null,null,null,"التقيم النهائي",null,null,null,null,null,null,null,null,null,null,null,null,"الوزن العام للتقييم",null,null,null,null,null,null,null,null,null,null,null,null,null,"مجموع نتائج التقييم",null,null,null,null,null,null,null,null,null,null,null,null,null,null,null,null,null,null,null,null,"الوزن* مجموع نتائج التقييم"]
[]
[]
[]
[null,null,null,null,null,null,null,null,null,null,null,"التقييم الكلي للأهداف / المسؤوليات",null,null,null,null,null,null,null,null,null,null,null,null,0.6,null,null,null,null,null,null,null,null,null,null,null,null,null,{"$f":"BK125","v":0},null,null,null,null,null,null,null,null,null,null,null,null,null,null,null,null,null,null,null,null,{"$f":"AM232*Y232","v":0}]
[]
[]
[]
[]
[]
[null,null,null,null,null,null,null,null,null,null,null,"التقييم الكلي للكفاءات",null,null,null,null,null,null,null,null,null,null,null,null,0.4,null,null,null,null,null,null,null,null,null,null,null,null,null,{"$f":"BK198","v":0},null,null,null,null,null,null,null,null,null,null,null,null,null,null,null,null,null,null,null,null,{"$f":"AM238*Y238","v":0}]
[]
[]
[]
[]
[]
[null,null,null,null,null,null,null,null,null,null,null,"تقييم الأداء النهائي على أساس مجموع النتائج",null,null,null,null,null,null,null,null,null,null,null,null,null,null,null,null,null,null,null,null,null,null,null,null,null,null,{"$f":"BH232+BH238","v":0}]
[]
[]
[]
[]
[]
[]
[]
[]
[null,null,null,null,null,null,null,null,null,null,null,"يفوق التوقعات بشكل ملحوظ\n4",null,null,null,null,null,null,null,null,null,null,null,null,null,null,null,null,"يفوق التوقعات\n3",null,null,null,null,null,null,null,null,null,null,null,null,null,null,null,null,"يلبي التوقعات\n2",null,null,null,null,null,null,null,null,null,null,null,null,null,null,null,null,"يحتاج إلى تحسين\n1"]
[]
[]
[]
[]
[]
[]
[null,null,null,null,null,null,null,null,null,null,null,{"$f":"IF(AM244>=3.5,\"4\",\"\")","v":""},null,null,null,null,null,null,null,null,null,null,null,null,null,null,null,null,{"$f":"IF(AND($AM$244>=2.5,AM244<=3.4),\"3\",\"\")","v":""},null,null,null,null,null,null,null,null,null,null,null,null,null,null,null,null,{"$f":"IF(AND($AM$244>=1.5,AM244<=2.4),\"2\",\"\")","v":""},null,null,null,null,null,null,null,null,null,null,null,null,null,null,null,null,{"$f":"IF(AND($AM$244>=1,AM244<=1.4),\"1\",\"\")","v":""}]
[]
[]
[]
[]
[]
[]
[]
[]
[null,null,null,null,null,null,null,null,null,null,null,"توقيع الموظف والتاريخ",null,null,null,null,null,null,null,null,null,null,null,null,null,null,null,null,null,null,null,null,null,null,null,null,"توقيع المسؤول المباشر والتاريخ",null,null,null,null,null,null,null,null,null,null,null,null,null,null,null,null,null,null,null,null,null,null,"توقيع مدير الإدارة والتاريخ"]
[]
[]
[]
[]
[null,null,null,null,null,null,null,null,null,null,null,null,null,"-----------------------------------",null,null,null,null,null,null,null,null,null,null,null,null,null,null,null,null,null,null,null,null,null,null,null,null,"-----------------------------------",null,null,null,null,null,null,null,null,null,null,null,null,null,null,null,null,null,null,null,null,null,null,"-----------------------------------"]

{"sheet":"SOURCE_SH","index":1,"n_rows":14,"n_cols":8,"rows_kept":14,"cut":false,"hidden":false,"merged":[]}
["اسم الموظف","الرقم الإداري","المسمى الوظيفي","الدرجة الوظيفية","الإدارة/القسم","تاريخ التعيين","اسم المسؤول المباشر","اسم مدير الإدارة"]
[]
["هيوا واراويتاج بريانجا",6849,"مشرف صيانة",5,"قسم المحطات الخارجية والشبكات","1992-04-14","عبد الله صالح","م. جعفر علي جعفر"]
["عرفان اوركزائي",8727,"رئيس مشغلي آلة",11,"قسم المحطات الخارجية والشبكات","1995-06-24","م. أحمد عبد الله الصالح","م. جعفر علي جعفر"]
["فيذيادهاران سوسين دران",9101,"رئيس عمال",12,"قسم المحطات الخارجية والشبكات","1995-12-17","هيوا واراويتاج بريانجا","م. جعفر علي جعفر"]
["نذير احمد بن سلطان محمد",9514,"مراقب",11,"قسم المحطات الخارجية والشبكات","1996-09-18","م. أحمد عبد الله الصالح","م. جعفر علي جعفر"]
["محمد دوبراج مياه",10574,"مراقب عمال",12,"قسم المحطات الخارجية والشبكات","1998-03-31","هيوا واراويتاج بريانجا","م. جعفر علي جعفر"]
["توراف شاما شاما",10935,"فني ميكانيكي",12,"قسم المحطات الخارجية والشبكات","1998-06-01","هيوا واراويتاج بريانجا","م. جعفر علي جعفر"]
["محمد نصيرالدين",11843,"مشرف صيانة",11,"قسم المحطات الخارجية والشبكات","2000-03-06","هيوا واراويتاج بريانجا","م. جعفر علي جعفر"]
["زاهر على محمد على",14557,"مراقب",12,"قسم المحطات الخارجية والشبكات","2003-05-12","م. أحمد عبد الله الصالح","م. جعفر علي جعفر"]
["سيد على شاه محمد عزيز",14583,"مراقب محطات ضخ",7,"قسم المحطات الخارجية والشبكات","2003-05-24","هيوا واراويتاج بريانجا","م. جعفر علي جعفر"]
["فارس عمار كلثم",29063,"مهندس صيانة",7,"قسم المحطات الخارجية والشبكات","2017-08-14","عبد الله صالح","م. جعفر علي جعفر"]
["م. أحمد عبدالله الصالح",29189,"مهندس صرف صحي","أولى - مهندسين","قسم المحطات الخارجية والشبكات","2017-11-14","عبد الله صالح","م. جعفر علي جعفر"]
["حمدان خان عالم",30606,"مشرف عمال",10,"قسم المحطات الخارجية والشبكات","2019-09-10","م. أحمد عبد الله الصالح","م. جعفر علي جعفر"]

{"sheet":"Sheet1","index":2,"n_rows":15,"n_cols":8,"rows_kept":15,"cut":false,"hidden":true,"merged":[]}
[]
[]
[]
[]
[]
[null,"نقاط التقييم","وزن الهدف","أنجزت","المسمى الوظيفي","المسؤول المباشر","الإدارة/ القسم","مدير الإدارة"]
[]
[null,1,0.1,"نعم","مساعد فني مختبر","فاطمة المعيني","قسم المختبر","م. جعفر علي جعفر"]
[null,2,0.2,"لا","فني مختبر","إقبال أختر","قسم المعالجة"]
[null,3,0.3,null,"فني تحضير وحدة أحياء دقيقة","م. طه العطا","قسم الأعمال المدنية"]
[null,4,0.4,null,"محلل كيميائي","م. محمد الغزال","قسم الري"]
[null,null,null,null,"رئيس شعبة الأحياء الدقيقة","عبد الله صالح","قسم تشغيل المحطات الخارجية والشبكات"]
[null,null,null,null,"رئيس شعبة الكيمياء","عبد الله الحوسني","قسم الصيانة التخصصية"]
[null,null,null,null,"رئيس شعبة الحمأة","م. جعفر علي جعفر"]
[null,null,null,null,"رئيس قسم مختبر الصرف الصحي"]